[Event "Marienbad Open IM B 2025"]
[Site "Marianske Lazne"]
[Date "2025.01.19"]
[Round "2.13"]
[White "Roesemann, Rainer"]
[Black "Tichy, Stepan"]
[Result "1-0"]
[Annotator "TA"]
[ECO "A14"]
[WhiteElo "2276"]
[BlackElo "2184"]
[PlyCount "103"]
[EventDate "2025.01.18"]
[EventType "tourn"]
[EventCountry "CZE"]
[SourceTitle "playchess.com"]
[Source "ChessBase"]
[SourceQuality "1"]
[TimeControl "40/5400+30:1800+30"]

{[%evp 15,103,13,12,0,4,0,0,0,15,0,4,0,30,12,44,6,46,47,75,74,85,75,79,89,74,97,105,92,114,79,115,39,145,161,144,143,163,162,180,56,62,57,63,60,79,64,80,79,137,145,145,133,135,116,228,112,170,169,194,6,6,8,294,147,135,111,251,200,264,279,352,348,309,329,310,314,29981,29982,29982,29983,29983,29984,29984,29985,29985,29986,29986,29987,29987,29988]} 1. c4 {[%emt 0:00:04]} Nf6 {[%emt 0:00:28]} 2. g3 {[%emt 0:00:11]} e6 {[%emt 0:00:06]} 3. Bg2 {[%emt 0:00:13]} d5 {[%emt 0:00:09]} 4. Nf3 {[%emt 0:00:23]} Be7 {[%emt 0:00:34]} 5. O-O {[%emt 0:01:02]} O-O {[%emt 0:00:19]} 6. b3 {[%emt 0:00:33]} c6 {[%emt 0:02:31]} 7. Bb2 {[%emt 0:00:18]} b6 {[%emt 0:00:06]} 8. d3 {[%emt 0:01:18]} Bb7 {[%emt 0:00:29]} 9. Nbd2 {[%emt 0:02:36]} c5 {[%emt 0:03:14]} 10. e3 $1 {[%emt 0:01:24]} Nc6 {[%emt 0:02:42]} 11. Qe2 {[%emt 0:00:34]} Qc7 {[%emt 0:00:52]} 12. Rac1 {[%emt 0:03:43]} a5 {[%emt 0:06:24]} 13. Nb1 {[%emt 0:10:25]} Rad8 {[%emt 0:12:19]} 14. Nc3 {[%emt 0:01:06]} Na7 {[%emt 0:01:42]} 15. Rfd1 {[%emt 0:06:23]} Rfe8 {[%emt 0:09:53]} (15... d4 {looks sharper.} 16. Nb5 Nxb5 17. cxb5 dxe3 18. fxe3 Ng4) 16. d4 {[%emt 0:08:23]} Ne4 {[%emt 0:04:57]} 17. cxd5 {[%emt 0:08:59]} Nxc3 {[%emt 0:00:54]} 18. Bxc3 {[%emt 0:00:46]} Bxd5 {[%emt 0:03:49]} 19. dxc5 {[%emt 0:00:54]} Bxc5 {[%emt 0:01:09]} 20. Bd4 {[%emt 0:02:10]} Rd6 {[%emt 0:23:53]} 21. Bxc5 {[%emt 0:03:47]} bxc5 {[%emt 0:03:51]} 22. Qc2 Bxf3 23. Rxd6 {[%emt 0:07:38]} (23. Bxf3 $16 Rxd1+ 24. Rxd1 (24. Bxd1 Rc8 $16) (24. Qxd1 g6 $16)) 23... Qxd6 {[%emt 0:02:07]} ({Better is} 23... Bxg2 $14 24. Qxc5 Qb7) 24. Bxf3 $16 {[%emt 0:00:09]} Rc8 {[%emt 0:01:12] Black is weak on the light squares} 25. Qc4 {[%emt 0:00:57]} Qb6 {[%emt 0:01:24]} 26. Rd1 {[%emt 0:10:55]} Nb5 {[%emt 0:01:27]} 27. Be2 {[%emt 0:00:48]} (27. Rd7 $18 Nd6 28. Qd3) 27... Nd6 $14 {[%emt 0:00:48]} 28. Qf4 {[%emt 0:00:50]} Rd8 {[%emt 0:02:46]} 29. Qg5 {[%emt 0:00:53]} Nb7 {[%emt 0:03:02]} 30. Rc1 {[%emt 0:00:16][%cal Bd1c1,Bc1c4,Bc4f4][%mdl 32]} Rd2 {[%emt 0:00:31]} 31. Bf3 $1 {[%emt 0:01:24]} g6 {[%emt 0:05:51]} (31... h6 $142 32. Qe5 Nd6) 32. h4 h5 {[%emt 0:03:08]} 33. Qe5 $1 {[%emt 0:06:29]} (33. Bxh5 $2 Rd5 (33... Rxa2 $2 34. Bxg6 fxg6 35. Rd1 $18) 34. Qe7 Rxh5 $19 (34... gxh5 $2 35. e4 $19)) 33... Rd7 {[%emt 0:02:00]} 34. Rc4 {[%emt 0:10:30] White has more active pieces.} Rc7 {[%emt 0:01:23]} (34... Qc7 $16 35. Qc3 Kh7) 35. g4 {[%emt 0:02:10]} (35. Bxb7 $1 $18 {and the rest is easy.} Qxb7 36. Rxc5 Rxc5 37. Qxc5) 35... Nd6 {[%emt 0:00:26]} (35... Qd6 $16 {might work better.} 36. Qc3 hxg4 37. Rxg4 c4) 36. Rf4 $18 hxg4 {[%emt 0:00:45]} 37. Bxg4 $2 {[%emt 0:01:43]} (37. Rxg4 $18 {and h5 should not be overlooked} Nf5 38. h5) 37... c4 $11 {[%emt 0:00:23] aiming for ...c3.} 38. Rd4 $36 {[%emt 0:02:38][%mdl 2048] White is more active.} Nb7 $2 {[%emt 0:00:40][%mdl 8192] [#]} (38... cxb3 $1 $11 {and Black has nothing to worry.} 39. axb3 (39. Qxd6 $2 {too greedy.} Rc1+ 40. Kg2 Qxd6 $19) 39... Ne8) 39. bxc4 (39. h5 $1 $18 {[%cal Rh5h6]} cxb3 40. h6) 39... Qc5 $16 40. Qg3 {[%emt 0:04:15]} Kf8 {[%emt 0:01:33]} (40... Qe7 $16 41. Bf3 Kh7) 41. Bf3 {[%emt 0:33:23]} Ke7 {[%emt 0:04:49]} 42. h5 $1 {[%emt 0:00:00]} gxh5 {[%emt 0:00:26]} 43. Qh4+ {[%emt 0:00:00]} f6 {[#]} 44. Bxb7 $1 {[%emt 0:00:00]} (44. Bxh5 Qg5+ 45. Kf1 Qxh4 46. Rxh4 Kd6 $16) 44... Rxb7 $18 {[%emt 0:01:08][%mdl 4096] Endgame KQR-KQR} 45. Qe4 {Prevents Rb1+} Qg5+ $2 {[%emt 0:08:57]} (45... Qb6 $18 46. Qh7+ Kf8 47. Qh8+ (47. Qxh5 Rg7+ 48. Kf1 e5 $16) 47... Ke7 48. Qg7+ (48. Qxh5 Qc6 $18) 48... Ke8 49. Qxf6 Rf7) 46. Kf1 {[%emt 0:00:00]} Rb2 {[%emt 0:00:11]} 47. Qh7+ {[%emt 0:00:00]} Ke8 48. Qh8+ {[%emt 0:00:00]} ({Less strong is} 48. Rd7 Rb1+ 49. Qxb1 Kxd7 $14) 48... Ke7 {[%emt 0:00:44]} 49. Qd8+ {[%emt 0:00:00]} Kf7 {[%emt 0:00:11]} 50. Rd7+ {[%emt 0:00:00]} Kg6 {[%emt 0:00:14]} 51. Qg8+ {[%emt 0:00:00]} Kf5 {[%emt 0:00:23]} 52. Qh7+ 1-0

[Event "Marienbad Open IM B 2025"]
[Site "Marianske Lazne"]
[Date "2025.01.19"]
[Round "2.14"]
[White "Bhagat Kush"]
[Black "Ochedzan, Filip"]
[Result "0-1"]
[Annotator "TA"]
[ECO "B51"]
[WhiteElo "2294"]
[BlackElo "2138"]
[PlyCount "98"]
[EventDate "2025.01.18"]
[EventType "tourn"]
[EventCountry "CZE"]
[SourceTitle "playchess.com"]
[Source "ChessBase"]
[SourceQuality "1"]
[TimeControl "40/5400+30:1800+30"]

{[%evp 9,98,37,34,29,29,15,27,28,19,22,46,19,43,28,37,32,36,24,43,35,39,28,36,26,37,30,23,21,33,8,21,-28,-22,-73,-41,-97,-76,-129,-123,-125,-106,-136,-114,-132,-141,-239,-209,-216,-134,-132,-95,-277,-272,-252,-204,-230,-220,-214,-236,-366,-375,-687,-403,-402,-416,-417,-414,-401,-403,-387,-333,-327,-326,-313,-305,-385,-385,-372,-389,-451,-451,-436,-402,-1193,-1117,-5197,-1066,-990,-979,-903,-872]} 1. e4 {[%emt 0:04:33]} c5 {[%emt 0:00:08]} 2. Nf3 {[%emt 0:00:16]} d6 {[%emt 0:00:06]} 3. Bb5+ {[%emt 0:00:18]} Nd7 {[%emt 0:00:05]} 4. d4 {[%emt 0:00:25]} a6 {[%emt 0:00:08]} 5. Bd3 {[%emt 0:05:13]} cxd4 {[%emt 0:02:41]} 6. Nxd4 {[%emt 0:00:49]} Ngf6 {[%emt 0:00:40]} 7. O-O {[%emt 0:01:08]} e6 {[%emt 0:00:25]} 8. c4 {[%emt 0:04:38]} Be7 {[%emt 0:03:27]} 9. Nc3 {[%emt 0:00:38]} O-O {[%emt 0:00:11]} 10. b3 {[%emt 0:03:47]} Qc7 {[%emt 0:02:50][%cal Ob7b5]} 11. Bb2 {[%emt 0:01:35]} b6 {[%emt 0:01:35]} 12. Re1 {[%emt 0:08:03]} Bb7 {[%emt 0:01:23]} 13. Qe2 {[%emt 0:07:57]} Rfe8 {[%emt 0:02:01]} 14. Rad1 {[%emt 0:00:19]} Rad8 {[%emt 0:08:45]} 15. Bb1 {[%emt 0:05:14]} Nc5 {[%emt 0:07:06]} 16. Rc1 {[%emt 0:09:51]} Qb8 {[%emt 0:07:26]} 17. b4 {[%emt 0:03:01]} Ncd7 {[%emt 0:00:11]} 18. a3 {[%emt 0:00:09]} Bf8 {[%emt 0:21:18]} 19. Nb3 {[%emt 0:17:58]} Rc8 {[%emt 0:05:56]} 20. Red1 {[%emt 0:14:39]} (20. f4 {is more appropriate.}) 20... d5 $11 {[%emt 0:06:14]} 21. Nd2 {[%emt 0:07:25]} (21. exd5 $2 exd5 22. Qf1 dxc4 $17 (22... Rxc4 23. h3 $17)) (21. Bd3 $1 $11 {remains equal.}) 21... d4 {[%emt 0:04:34]} 22. Na2 {[%emt 0:00:09]} (22. e5 $1 $15) 22... e5 $17 {[%emt 0:00:20] Black is more active.} 23. Bd3 {[%emt 0:00:21]} (23. f4 $142) 23... a5 $36 {[%emt 0:02:25][%mdl 2048] Black is on the roll.} 24. Re1 {[%emt 0:02:57]} axb4 {[%emt 0:07:58]} 25. axb4 {[%emt 0:00:38]} Qd6 {[%emt 0:00:35]} 26. Nb3 {[%emt 0:00:51]} Ra8 {[%emt 0:03:08]} 27. c5 {[%emt 0:00:31]} (27. Ra1 $17) 27... bxc5 $19 {[%emt 0:00:49]} 28. bxc5 {[%emt 0:00:06]} Qc7 {[%emt 0:01:54]} 29. Nb4 {[%emt 0:00:55]} Bxc5 {[%emt 0:03:33]} 30. Nd5 $2 {[%emt 0:00:30] Prevents Qb6} Bxd5 {[%emt 0:01:48]} (30... Nxd5 31. exd5 Qd6 (31... Bxd5 32. Nxc5 Nxc5 33. Bxd4 $16) 32. Bxh7+ Kxh7 33. Nxc5 Nxc5 34. Qc2+ d3 35. Qxc5 Qxd5 36. Qxd5 Bxd5 37. Re3 $17) 31. exd5 {[%emt 0:00:12]} Qd6 {[%emt 0:01:52]} (31... Nxd5 32. Bf5 Nf4 33. Qf3 $15) 32. Bb5 {[%emt 0:00:46] Threatens to win with Nxc5.} Reb8 {[%emt 0:01:03]} (32... Qxd5 33. Nxc5 Nxc5 34. Bxe8 $16) 33. Nxc5 {[%emt 0:00:29]} Nxc5 {[%emt 0:00:07]} 34. Bc6 {[%emt 0:00:16] [#]} (34. Bc4 $142) 34... Ra2 $1 {[%emt 0:02:04]} 35. Rb1 $2 {[%emt 0:00:18]} (35. Qc4 Nb3 (35... Raxb2 36. Qxc5 Qxc5 37. Rxc5 $19) 36. Rb1) 35... Rbxb2 {[%emt 0:02:19]} 36. Rxb2 {[%emt 0:00:39]} Rxb2 {[%emt 0:00:05]} 37. Qxb2 {[%emt 0:00:34]} Nd3 $1 {[%emt 0:00:06] A dynamic duo of knights.} (37... Nxd5 $2 {is the wrong capture.} 38. Bxd5 g5 39. Qa2 $18) 38. Qd2 {[%emt 0:00:44]} Nxe1 {[%emt 0:00:07]} 39. Qxe1 {[%emt 0:00:01]} Nxd5 {[%emt 0:00:30][%mdl 4096] Endgame KQB-KQN. Black is two pawns up.} 40. Qa5 {[%emt 0:00:31]} Nc7 {[%emt 0:00:31]} ({Stronger than} 40... Qxc6 41. Qd8+) 41. Be4 {[%emt 0:30:36]} g6 {[%emt 0:30:35]} 42. h4 {[%emt 0:00:00]} h5 {[%emt 0:00:00]} 43. Bd3 {[%emt 0:00:00]} Kg7 {[%emt 0:00:00]} 44. g3 {[%emt 0:00:00]} Ne6 {[%emt 0:00:00]} 45. Qa7 {[%emt 0:00:00]} Qd5 {[%emt 0:00:00]} 46. Bb1 {[%emt 0:00:00]} (46. Qa6 $142) 46... d3 {[%emt 0:00:00] Threatens to win with ...Nd4.} 47. Qa4 {[%emt 0:00:00]} Nc5 {[%emt 0:00:00]} (47... Nd4 $142 48. Bxd3 Nf3+ 49. Kf1 Qxd3+ 50. Kg2 Ne1+ (50... Qd5 $2 51. Qb4 $19) 51. Kg1 Qf3) 48. Qd1 {[%emt 0:00:00]} e4 {[%emt 0:00:00]} 49. Qd2 {[%emt 0:00:00]} Qb3 {[%emt 0:00:00]} 0-1

[Event "Marienbad Open IM B 2025"]
[Site "Marianske Lazne"]
[Date "2025.01.19"]
[Round "2.15"]
[White "Senthil Maran K"]
[Black "Van der Hagen, Loek"]
[Result "1-0"]
[Annotator "TA"]
[ECO "D23"]
[WhiteElo "2398"]
[BlackElo "2299"]
[PlyCount "139"]
[EventDate "2025.01.18"]
[EventType "tourn"]
[EventCountry "CZE"]
[SourceTitle "playchess.com"]
[Source "ChessBase"]
[SourceQuality "1"]
[TimeControl "40/5400+30:1800+30"]

{[%evp 10,139,-19,-29,6,-33,-6,-22,10,23,37,31,50,23,30,16,33,6,6,17,13,22,15,0,14,2,11,0,0,0,16,10,33,13,28,23,38,16,8,12,9,13,14,12,12,4,3,0,0,0,14,0,0,0,8,0,7,8,14,9,64,17,97,0,0,0,0,0,0,0,0,0,0,0,0,0,0,0,0,0,0,0,0,0,0,0,0,0,0,0,0,0,0,0,0,0,0,0,0,0,0,0,0,0,114,87,319,165,1000,850,1015,947,906,757,1163,1142,1214,681,1190,1098,1828,1755,1539,1378,29981,29982,29981,29982,29989,29990,29991,33]} 1. d4 {[%emt 0:09:36]} d5 {[%emt 0:00:26]} 2. c4 {[%emt 0:01:09]} dxc4 {[%emt 0:00:21]} 3. Nf3 {[%emt 0:00:16]} Nf6 {[%emt 0:00:30]} 4. Qa4+ {[%emt 0:01:49]} Nbd7 {[%emt 0:02:11]} 5. Qxc4 {[%emt 0:00:32]} e6 {[%emt 0:04:11]} 6. Bg5 {[%emt 0:06:32]} h6 {[%emt 0:03:56]} 7. Bh4 {[%emt 0:02:02]} Be7 {[%emt 0:04:34][%cal Ob7b5]} 8. Nbd2 {[%emt 0:01:25]} b6 {[%emt 0:25:20]} 9. Qc6 {[%emt 0:20:17]} Ba6 {[%emt 0:13:45]} 10. Bxf6 {[%emt 0:09:03]} Bxf6 {[%emt 0:01:53]} 11. e3 {[%emt 0:00:28]} Bxf1 {[%emt 0:00:55]} 12. Nxf1 {[%emt 0:00:53]} O-O {[%emt 0:01:49]} 13. N1d2 {[%emt 0:01:17]} e5 {[%emt 0:02:31]} 14. O-O {[%emt 0:07:50]} Re8 {[%emt 0:06:02][%cal Bf8e8,Be8e6,Be6f6][%mdl 32]} 15. Ne4 {[%emt 0:03:33]} Re6 {[%emt 0:04:01]} 16. Qd5 {[%emt 0:04:41]} c6 {[%emt 0:03:56]} 17. Nxf6+ {[%emt 0:02:26]} Rxf6 {[%emt 0:00:12]} 18. Qe4 {[%emt 0:00:25]} exd4 {[%emt 0:02:00]} 19. Qxd4 {[%emt 0:00:36]} Qc7 {[%emt 0:01:46]} 20. Rfd1 {[%emt 0:00:46]} Nf8 {[%emt 0:02:52]} 21. Rac1 {[%emt 0:03:34]} Re8 {[%emt 0:03:05]} 22. b4 {[%emt 0:01:13]} Qb8 {[%emt 0:02:00][%cal Oc6c5]} 23. h3 {[%emt 0:01:31]} c5 {[%emt 0:02:37]} 24. bxc5 {[%emt 0:04:14]} Ne6 {[%emt 0:00:05][%csl LRc5,LRd4]} 25. Qd6 {[%emt 0:04:13]} Nxc5 {[%emt 0:00:08]} 26. Qxb8 {[%emt 0:00:13]} Rxb8 {[%emt 0:00:04]} 27. Ne5 {[%emt 0:00:39]} Re8 {[%emt 0:04:04]} 28. Nd7 {[%emt 0:01:38]} Nxd7 {[%emt 0:00:04]} 29. Rxd7 $11 {[%emt 0:00:08][%mdl 4096] Endgame KRR-KRR} a6 {[%emt 0:00:03]} 30. Rcc7 {[%emt 0:01:05]} Re5 {[%emt 0:03:32]} 31. g4 {[%emt 0:01:48] Threatening Rc8+.} Ra5 {[%emt 0:00:07]} 32. Rd2 {[%emt 0:00:28]} Ra3 {[%emt 0:03:35]} 33. Kg2 {[%emt 0:00:49]} g6 {[%emt 0:01:52]} 34. h4 {[%emt 0:04:05]} Ra5 {[%emt 0:01:30]} (34... Kg7 $11) 35. f4 {[%emt 0:01:28]} (35. Rc8+ $14 Kg7 36. Rdd8) 35... g5 {[%emt 0:01:12]} (35... Kg7 $11) 36. hxg5 {[%emt 0:01:28] White is more active.} (36. f5 $16 Kg7 37. h5) 36... hxg5 {[%emt 0:00:05]} 37. f5 {[%emt 0:00:15]} Kg7 {[%emt 0:00:37]} 38. Kf3 {[%emt 0:01:09]} Rh6 $1 {[%emt 0:00:55]} 39. Rdd7 {[%emt 0:01:15]} Rf6 $1 {[%emt 0:00:12]} 40. Rc2 {[%emt 0:02:51]} Rh6 {[%emt 0:00:36] Prevents Rh2.} 41. Kg3 {[%emt 0:30:46] Against Rh3+} Ra3 {[%emt 0:30:44]} 42. Re7 {[%emt 0:00:32]} Kf8 {[%emt 0:00:00]} 43. Re4 {[%emt 0:00:00]} Kg7 {[%emt 0:00:00]} 44. Re8 {[%emt 0:00:00]} Rh1 {[%emt 0:00:00]} 45. Re7 {[%emt 0:00:00]} Rh6 {[%emt 0:00:00]} 46. Kg2 {[%emt 0:00:00]} Kf8 {[%emt 0:00:00]} 47. Re5 {[%emt 0:00:00]} Kg7 {[%emt 0:00:00]} 48. Re4 {[%emt 0:00:00] Prevents Ra4} Rh4 {[%emt 0:00:00]} 49. Kg3 {[%emt 0:00:00]} Rh1 {[%emt 0:00:00]} 50. Re7 {[%emt 0:00:00]} Rh6 {[%emt 0:00:00]} 51. Rcc7 {[%emt 0:00:00]} Rf6 {[%emt 0:00:00]} 52. Kf3 {[%emt 0:00:00]} Kf8 {[%emt 0:00:00]} 53. Ke4 {[%emt 0:01:17]} Kg7 {[%emt 0:01:06]} 54. Red7 {[%emt 0:00:58]} Rxa2 {[%emt 0:01:31]} 55. Ke5 {[%emt 0:00:05]} Ra5+ {[%emt 0:01:50]} 56. Rd5 {[%emt 0:00:08]} Rxd5+ {[%emt 0:00:24]} (56... Rh6 $11 {keeps the balance.}) 57. Kxd5 {[%emt 0:00:01] KR-KR. Black is a pawn up.} Rh6 $2 {[%emt 0:00:36]} (57... b5 $16 {is a better defense.}) 58. e4 $18 {[%emt 0:00:13][%cal Be3e4,Be4e5][%mdl 32]} Rh1 $2 {[%emt 0:00:57]} (58... Rh8) 59. e5 {[%emt 0:00:08] And now e6 would win.} Kf8 {[%emt 0:01:36]} 60. f6 {[%emt 0:02:24][%cal Rc7c8]} Rd1+ {[%emt 0:00:51] [#]} 61. Ke4 $1 {[%emt 0:00:09]} Rd8 {[%emt 0:00:58] Against Rc8} 62. Kf5 {[%emt 0:00:26]} Re8 {[%emt 0:00:47]} 63. Rb7 {[%emt 0:01:34]} (63. Kxg5 Rxe5+ 64. Kh6 a5) 63... b5 {[%emt 0:00:04]} 64. Rb6 {[%emt 0:01:34] Prevents Re6.} (64. Kxg5 Rxe5+ 65. Kh6 Ke8 $18) 64... a5 {[%emt 0:00:56]} 65. Rxb5 {[%emt 0:00:51]} Ra8 {[%emt 0:00:04]} 66. e6 {[%emt 0:01:53] Rb7 would kill now.} fxe6+ {[%emt 0:00:08]} 67. Kg6 {[%emt 0:00:20]} e5 {[%emt 0:01:19]} 68. Rb7 {[%emt 0:00:29]} Kg8 {[%emt 0:00:31]} 69. Rg7+ {[%emt 0:00:07]} Kh8 {[%emt 0:00:08]} 70. Rh7+ {[%emt 0:00:07]} 1-0

[Event "Marienbad Open IM B 2025"]
[Site "Marianske Lazne"]
[Date "2025.01.20"]
[Round "3.11"]
[White "Van der Hagen, Loek"]
[Black "Konopka, Michal"]
[Result "1/2-1/2"]
[Annotator "TA"]
[ECO "B10"]
[WhiteElo "2299"]
[BlackElo "2321"]
[PlyCount "34"]
[EventDate "2025.01.18"]
[EventType "tourn"]
[EventCountry "CZE"]
[SourceTitle "playchess.com"]
[Source "ChessBase"]
[SourceQuality "1"]
[TimeControl "40/5400+30:1800+30"]

{[%evp 9,34,31,45,34,45,47,49,51,51,26,37,29,26,17,25,12,19,17,20,16,12,0,0,-36,-33,-24,-26]} 1. e4 {[%emt 0:00:04]} c6 {[%emt 0:01:19]} 2. Nc3 {[%emt 0:00:17]} d5 {[%emt 0:00:18]} 3. Nf3 {[%emt 0:00:07]} dxe4 {[%emt 0:01:58]} 4. Nxe4 {[%emt 0:00:08]} Nf6 {[%emt 0:00:18]} 5. Qe2 {[%emt 0:00:06]} Na6 {[%emt 0:01:45]} 6. d4 {[%emt 0:00:40]} Nxe4 {[%emt 0:07:23]} 7. Qxe4 {[%emt 0:00:07]} Qd5 {[%emt 0:00:42] Against Bc4} 8. Qxd5 {[%emt 0:00:07]} cxd5 {[%emt 0:00:06]} 9. Ne5 {[%emt 0:01:32] Bb5+ is the strong threat.} Nb8 {[%emt 0:00:15]} 10. Bb5+ {[%emt 0:00:27]} Nd7 {[%emt 0:00:11]} 11. h4 {[%emt 0:00:19]} a6 {[%emt 0:02:51] Black is weak on the dark squares} 12. Nxd7 {[%emt 0:19:20]} Bxd7 {[%emt 0:02:38]} 13. Bd3 {[%emt 0:07:11]} h5 {[%emt 0:04:57]} 14. Bf4 {[%emt 0:00:24]} g6 {[%emt 0:04:05]} 15. Be5 {[%emt 0:02:59]} Rg8 {[%emt 0:01:28]} 16. O-O-O {[%emt 0:05:52]} Bh6+ {[%emt 0:03:54]} 17. Kb1 {[%emt 0:00:22]} f6 {[%emt 0:00:07]} 1/2-1/2

[Event "Marienbad Open IM B 2025"]
[Site "Marianske Lazne"]
[Date "2025.01.20"]
[Round "3.12"]
[White "Ochedzan, Filip"]
[Black "Senthil Maran K"]
[Result "1/2-1/2"]
[Annotator "TA"]
[ECO "B15"]
[WhiteElo "2138"]
[BlackElo "2398"]
[PlyCount "78"]
[EventDate "2025.01.18"]
[EventType "tourn"]
[EventCountry "CZE"]
[SourceTitle "playchess.com"]
[Source "ChessBase"]
[SourceQuality "1"]
[TimeControl "40/5400+30:1800+30"]

{[%evp 14,78,18,24,30,35,47,38,50,50,49,22,31,14,12,16,18,5,10,10,13,16,10,10,12,7,23,4,39,34,28,0,0,0,0,0,0,0,50,0,0,0,0,0,0,0,0,0,0,0,0,0,0,0,0,0,0,0,0,0,0,0,0,0,0,0,0]} 1. e4 {[%emt 0:00:04]} c6 {[%emt 0:02:21]} 2. d4 {[%emt 0:00:06]} d5 {[%emt 0:00:12]} 3. Nc3 {[%emt 0:00:05]} dxe4 {[%emt 0:00:09]} 4. Nxe4 {[%emt 0:00:04]} Nf6 {[%emt 0:00:11]} 5. Nxf6+ {[%emt 0:00:14]} exf6 {[%emt 0:00:10]} 6. c3 {[%emt 0:06:23]} Bd6 {[%emt 0:00:53]} 7. Bd3 {[%emt 0:00:04]} O-O {[%emt 0:00:16]} 8. Qc2 {[%emt 0:00:07] Active counter play!} Re8+ {[%emt 0:00:09]} 9. Ne2 {[%emt 0:00:03]} h5 {[%emt 0:00:33]} 10. O-O {[%emt 0:00:11]} h4 {[%emt 0:00:17] White is slightly better.} 11. Nf4 {[%emt 0:01:06]} Nd7 {[%emt 0:00:10]} 12. Qd1 {[%emt 0:00:11]} Nf8 {[%emt 0:00:08]} 13. Qh5 {[%emt 0:00:11]} Qc7 {[%emt 0:00:07]} 14. g3 {[%emt 0:01:36]} (14. Qxh4 $2 {perishes.} g5 15. Qh6 gxf4 $19 (15... Bxf4 $2 16. Be3 $19)) 14... Qd7 {[%emt 0:00:14]} 15. Bd2 {[%emt 0:15:28]} (15. Qxh4 $2 {loses.} g5 16. Qh6 gxf4 17. Bxf4 Bxf4 18. Qxf4 Qd5 $19) 15... Bxf4 {[%emt 0:00:29]} 16. Bxf4 {[%emt 0:06:46]} g5 {[%emt 0:00:12]} (16... hxg3 {simplifies} 17. hxg3 Qh3 18. Qxh3 Bxh3 19. Rfe1 Ne6) 17. Be3 {[%emt 0:01:58]} Qh3 {[%emt 0:08:00] [#] Strongly threatening ...Bg4.} 18. Qf3 {[%emt 0:07:17]} Kg7 {[%emt 0:00:30]} 19. Rfe1 {[%emt 0:00:51]} Bg4 {[%emt 0:01:44]} 20. Qg2 {[%emt 0:00:49]} Ng6 {[%emt 0:27:50]} (20... hxg3 {simplifies} 21. fxg3 Qxg2+ 22. Kxg2 Ng6) 21. Qxh3 {[%emt 0:04:35]} Bxh3 {[%emt 0:00:22]} 22. f4 {[%emt 0:02:12]} hxg3 {[%emt 0:08:38]} 23. hxg3 {[%emt 0:00:25]} gxf4 {[%emt 0:00:20]} 24. Bxf4 {[%emt 0:00:34]} Nxf4 {[%emt 0:04:27]} 25. gxf4 {[%emt 0:00:08]} Be6 {[%emt 0:00:13]} (25... Rxe1+ $11 26. Rxe1 Be6) 26. Kf2 {[%emt 0:05:29]} (26. f5 $1 $14 Bd7 27. Kf2) 26... f5 $11 {[%emt 0:00:54] The position is equal.} 27. Rh1 {[%emt 0:17:51]} Rh8 {[%emt 0:00:44]} 28. Ke3 {[%emt 0:02:47]} Kf6 {[%emt 0:01:19]} 29. c4 {[%emt 0:04:29]} Rag8 {[%emt 0:01:59]} 30. Rxh8 {[%emt 0:01:04]} Rxh8 {[%emt 0:00:02][%mdl 4096] Endgame. KRB-KRB} 31. Rf1 {[%emt 0:00:39]} a6 {[%emt 0:00:29]} 32. a4 {[%emt 0:05:32]} a5 {[%emt 0:00:01]} 33. Rf2 {[%emt 0:01:15]} Bd7 {[%emt 0:00:43]} 34. Rf1 {[%emt 0:00:44]} Ke7 {[%emt 0:04:18]} 35. b3 {[%emt 0:02:42]} Kd6 {[%emt 0:00:54]} 36. Rf2 {[%emt 0:02:17]} b6 {[%emt 0:01:26]} 37. Rf1 {[%emt 0:00:33]} Rh5 {[%emt 0:02:16]} 38. Rf2 {[%emt 0:00:27]} f6 {[%emt 0:01:18]} 39. Rf3 {[%emt 0:03:13]} Rh2 {[%emt 0:00:59] Weighted Error Value: White=0.05 (flawless) /Black=0.05 (flawless) .  Mistake:       	White=1     	Black=1      Inaccurate:     	White=2     	Black=1      OK:         	White=10    	Black=15     Best:        	White=1     	---} 1/2-1/2

[Event "Marienbad Open IM B 2025"]
[Site "Marianske Lazne"]
[Date "2025.01.20"]
[Round "3.13"]
[White "Tichy, Stepan"]
[Black "Bhagat Kush"]
[Result "1/2-1/2"]
[Annotator "NA RC"]
[ECO "A10"]
[WhiteElo "2184"]
[BlackElo "2294"]
[PlyCount "22"]
[EventDate "2025.01.18"]
[EventType "tourn"]
[EventCountry "CZE"]
[SourceTitle "playchess.com"]
[Source "ChessBase"]
[SourceQuality "1"]
[TimeControl "40/5400+30:1800+30"]

1. c4 {[%emt 0:00:04]} g6 {[%emt 0:00:24]} 2. g3 {[%emt 0:00:07]} Bg7 {[%emt 0:00:10]} 3. Bg2 {[%emt 0:00:05]} d6 {[%emt 0:01:14]} 4. Nc3 {[%emt 0:00:46]} Nf6 {[%emt 0:03:05]} 5. d3 {[%emt 0:00:42]} e5 {[%emt 0:00:44]} 6. Nf3 {[%emt 0:02:23]} O-O {[%emt 0:01:16]} 7. O-O {[%emt 0:00:05]} a5 {[%emt 0:00:39]} 8. e4 {[%emt 0:01:11]} h6 {[%emt 0:09:29]} 9. h3 {[%emt 0:02:40]} Be6 {[%emt 0:00:39]} 10. b3 {[%emt 0:00:59]} Nc6 {[%emt 0:04:09]} 11. Nd5 {[%emt 0:04:28]} Nd7 {[%emt 0:15:46]} 1/2-1/2